Cogmind - Beta 14 @@@ ROGUE MODE // 2024.09.26 @ 02:04:12 Player: feudal wulf Result: Destroyed by MN-V7V(R) with Subdweller Beam Cannon Performance ------------- Evolutions (0) 0 Regions Visited (3) 600 Robots Destroyed (24) 120 Value Destroyed (535) 535 Prototype IDs (1) 20 Alien Tech Used (0) 0 Bonus (120) 120 TOTAL SCORE: 1395 Bonus ------- Follower Combat Kills 120 Cogmind --------- Core Integrity 0/250 Matter 296/300 Energy 160/160 System Corruption 0% Temperature Cool (9) Movement Walking (130) Location -10/Subcaves Parts ------- > --- POWER (1) -------- Light Nuclear Core > --- PROPULSION (2) --- Titanium Leg > --- UTILITY (2) ------ Small Storage Unit Experimental Sensor Array > --- WEAPON (2) ------- Light Assault Rifle Heavy Assault Rifle > --- INVENTORY (8) ---- Ion Engine Hover Unit Airjet Core Shielding Medium Laser Assault Rifle Mining Laser Scythe Peak State ------------ > --- POWER ------------ Light Nuclear Core > --- PROPULSION ------- Aluminum Leg Titanium Leg > --- UTILITY ---------- Small Storage Unit Experimental Sensor Array > --- WEAPON ----------- Light Assault Rifle Heavy Assault Rifle > --- INVENTORY -------- Ion Engine Hover Unit Airjet Core Shielding Medium Laser Assault Rifle Mining Laser Scythe [Rating: 21] Favorites ----------- Power Light Nuclear Core Engine Light Ion Engine Power Core Light Nuclear Core Propulsion Aluminum Leg Leg Aluminum Leg Wheel Compact Wheel Hover Unit Hover Unit Utility Small Storage Unit Device Experimental Sensor Array Storage Small Storage Unit Weapon Light Assault Rifle Energy Gun Medium Laser Ballistic Gun Light Assault Rifle Build | -11 -10 -10 -10 ------- Run | Yrd Mat Min Sub Slots Evolved . | . . . . Power . | . . . . Propulsion . | . . . . Utility . | . . . . Weapon . | . . . . Parts Attached 30 | 6 21 3 . Power 5 | 1 3 1 . Engine 3 | 1 2 . . Core 2 | . 1 1 . Reactor . | . . . . Propulsion 12 | 2 9 1 . Treads . | . . . . Leg 4 | . 3 1 . Wheel 3 | 2 1 . . Hover 5 | . 5 . . Flight . | . . . . Utility 6 | 1 4 1 . Device 4 | . 3 1 . Storage 2 | 1 1 . . Processor . | . . . . Hackware . | . . . . Protection . | . . . . Artifact . | . . . . Weapon 7 | 2 5 . . Energy Gun 2 | 1 1 . . Energy Cannon . | . . . . Ballistic Gun 5 | 1 4 . . Ballistic Cannon . | . . . . Launcher . | . . . . Special Weapon . | . . . . Impact Weapon . | . . . . Slashing Weapon . | . . . . Piercing Weapon . | . . . . Special Melee Weapon . | . . . . Unidentified Prototypes 1 | . . 1 . Parts Lost 7 | . 6 . 1 Power 1 | . 1 . . Propulsion 4 | . 3 . 1 Utility 1 | . 1 . . Weapon 1 | . 1 . . Highest Loss Streak 3 | . 3 . 1 To Critical Strikes . | . . . . Average Slot Usage (%) 96 | . 93 100 99 Engine 4 | . 9 . . Core 9 | . 4 14 14 Leg 18 | . 8 28 27 Wheel 2 | . 4 . . Hover 6 | . 14 . . Device 11 | . 8 14 14 Storage 14 | . 14 14 14 Energy Gun 2 | . 5 . . Ballistic Gun 25 | . 21 28 28 Peak Build Rating 21 | 6 10 21 21 Average Rating 14 | 4 7 19 20 On Entrance 9 | . 6 10 21 Naked Turns . | . . . . Heaviest Build 24 | 14 24 15 15 Greatest Support 27 | 26 26 27 27 Greatest Overweight (x) 3 | . 3 . . Average Overweight (x) . | . . . . Largest Inventory Capacity 10 | 8 10 8 8 Average Capacity 7 | 6 8 8 8 Most Carried 9 | 4 9 8 8 Average Carried 7 | 1 6 7 8 Final Capacity 8 | 8 8 8 8 Final Carried 8 | 4 7 8 8 Class Distribution -------------------- 77% | Mutant 22% | Scavenger-Mutant Dominant Class ---------------- Mutant | -10/Materials Mutant | -10/Mines Mutant | -10/Subcaves Resources | -11 -10 -10 -10 ----------- Run | Yrd Mat Min Sub Matter Collected 710 | 210 414 74 12 Remotely . | . . . . Salvage Created 676 | . 559 83 34 Parts 48 | . 43 2 3 Haulers Intercepted . | . . . . Recyclers Shooed . | . . . . Parts Field Recycled . | . . . . Retrieved Matter . | . . . . Parts Self-Destructed 6 | . . . 6 Prevented . | . . . . Kills | -11 -10 -10 -10 ------- Run | Yrd Mat Min Sub Combat Hostiles Destroyed 20 | . 17 2 1 Guns 20 | . 17 2 1 Classes Destroyed 7 | . 6 . 1 Worker 1 | . 1 . . Recycler 1 | . 1 . . Operator 1 | . 1 . . Watcher 1 | . 1 . . Swarmer 9 | . 9 . . Grunt 10 | . 8 2 . Subdweller 1 | . . . 1 Best Kill Streak 3 | . 3 1 1 Combat Bots Only 3 | . 3 1 1 Max Kills in Single Turn 1 | . 1 1 1 Gunslinging . | . . . . Exploded . | . . . . Melee . | . . . . Uniques/NPCs Destroyed . | . . . . Combat | -11 -10 -10 -10 -------- Run | Yrd Mat Min Sub Hostile Shots Fired 128 | . 109 12 7 Missed 33 | . 31 1 1 Damage Taken 1157 | . 845 180 132 Core 273 | . 205 43 25 Absorbed by Shields . | . . . . Core Remaining (%) 100 | 100 . . . Volleys Fired 86 | . 71 11 4 Largest 2 | . 2 2 2 Hottest 70 | . 70 43 43 Shots Fired 168 | . 138 22 8 Gun 168 | . 138 22 8 Cannon . | . . . . Launcher . | . . . . Special . | . . . . Kinetic 133 | . 103 22 8 Thermal 35 | . 35 . . Explosive . | . . . . Electromagnetic . | . . . . Robot Hit Streak 14 | . 14 5 6 Robot Miss Streak 5 | . 5 2 1 Penetration Max . | . . . . Secondary Targets . | . . . . Shots Hit Robots 98 | . 77 15 6 Core Hits 40 | . 34 5 1 Critical Kills . | . . . . Critical Parts Destroyed . | . . . . Critical Strikes 1 | . 1 . . Burn 1 | . 1 . . Melee Attacks . | . . . . Impact . | . . . . Slashing . | . . . . Piercing . | . . . . Sneak Attacks . | . . . . Combat Hostiles . | . . . . Follow-up Attacks . | . . . . Damage Inflicted 1038 | . 808 180 50 Guns 1033 | . 803 180 50 Cannons . | . . . . Explosions . | . . . . Melee . | . . . . Ramming 5 | . 5 . . Kinetic 810 | . 580 180 50 Thermal 223 | . 223 . . Explosive . | . . . . Electromagnetic . | . . . . Impact . | . . . . Slashing . | . . . . Piercing . | . . . . Highest Corruption . | . . . . Average Corruption . | . . . . Corruption Purged . | . . . . Corruption Blocked . | . . . . Overload Shots . | . . . . Overflow Damage . | . . . . Projectiles . | . . . . Explosions . | . . . . Melee . | . . . . Knockbacks . | . . . . Impact . | . . . . Kinetic . | . . . . Secondary . | . . . . Self-Inflicted Damage 2 | . 2 . . Shots . | . . . . Rammed 3 | . 3 . . Targets Rammed 3 | . 3 . . Kicked . | . . . . Crushed . | . . . . Highest Temperature 162 | . 162 42 . Average Temperature 38 | . 40 21 . Received Heat Transfer 480 | . 366 96 18 Siege Activations . | . . . . Robots Corrupted . | . . . . Combat Hostiles . | . . . . Parts Fried . | . . . . Impact Corruptions . | . . . . Robots Melted . | . . . . Combat Hostiles . | . . . . Parts Melted 2 | . 2 . . Heat Transferred 740 | . 740 . . Parts Sabotaged . | . . . . Parts Stolen . | . . . . Parts Stripped . | . . . . Power Chain Reactions . | . . . . Alert | -11 -10 -10 -10 ------- Run | Yrd Mat Min Sub Peak Influence 402 | . 402 182 . Initial 117 | . . 117 . Average 171 | . 239 89 . Maximum Alert Level 2 | . 2 . . Low Security (%) 61 | 100 31 100 . Level 1 37 | . 67 . . Level 2 . | . 1 . . Level 3 . | . . . . Level 4 . | . . . . Level 5 . | . . . . High Security . | . . . . Max Security . | . . . . Squads Dispatched 6 | . 6 . . Investigation 3 | . 3 . . Extermination . | . . . . Reinforcement 3 | . 3 . . Assault . | . . . . Garrison . | . . . . Intercept . | . . . . Searches Triggered . | . . . . Construction Impeded . | . . . . Haulers Reinforced . | . . . . Active Scanning Responses . | . . . . Cargo Convoy Interrupts . | . . . . Stealth | -11 -10 -10 -10 --------- Run | Yrd Mat Min Sub Distress Signals 3 | . 3 . . Communications Jammed . | . . . . Distress Signals . | . . . . Times Spotted 46 | . 34 3 9 Peak Tracking Total 5 | . 5 2 2 Tactical Retreats 6 | . 4 1 1 Traps | -11 -10 -10 -10 ------- Run | Yrd Mat Min Sub Traps Triggered 3 | . 3 . . Indirectly . | . . . . Trap Hack Attempts . | . . . . Triggered . | . . . . Disarmed . | . . . . Reprogrammed . | . . . . Reused . | . . . . Traps Extracted . | . . . . Installed . | . . . . Triggered . | . . . . Machines | -11 -10 -10 -10 ---------- Run | Yrd Mat Min Sub Machines Disabled . | . . . . Max in Single Turn . | . . . . Machines Repaired . | . . . . Machines Dismantled . | . . . . Machines Sabotaged . | . . . . Overloaded Fab Kills . | . . . . Hacking | -11 -10 -10 -10 --------- Run | Yrd Mat Min Sub Machines Accessed 4 | . 3 1 . Terminals 3 | . 3 . . Fabricators . | . . . . Repair Stations . | . . . . Recycling Units . | . . . . Scanalyzers . | . . . . Garrison Access . | . . . . Total Hacks 8 | . 7 1 . Successful 5 | . 4 1 . Failed 3 | . 3 . . Catastrophic 1 | . 1 . . Database Lockouts . | . . . . Manual 2 | . 2 . . Terminals 7 | . 7 . . Fabricators . | . . . . Repair Stations . | . . . . Recycling Units . | . . . . Scanalyzers . | . . . . Garrison Access . | . . . . Terminal Hacks 5 | . 4 1 . Open Door 1 | . . 1 . Level Access Points 1 | . 1 . . Emergency Access Points 1 | . 1 . . Zone Layout 1 | . 1 . . Patrol Navigation 1 | . 1 . . Fabricator Hacks . | . . . . Repair Station Hacks . | . . . . Recycling Unit Hacks . | . . . . Scanalyzer . | . . . . Garrison Access Hacks . | . . . . Unauthorized Hacks . | . . . . Terminals . | . . . . Fabricators . | . . . . Repair Stations . | . . . . Recycling Units . | . . . . Scanalyzers . | . . . . Garrison Access . | . . . . Data Cores Recovered . | . . . . Used . | . . . . Hacking Detections 3 | . 3 . . Full Trace Events . | . . . . Feedback Events . | . . . . Feedback Blocked . | . . . . Robot Schematics Acquired . | . . . . Robots Built . | . . . . Authchips . | . . . . Time . | . . . . Total Robot Build Rating . | . . . . Part Schematics Acquired . | . . . . Parts Built . | . . . . Authchips . | . . . . Time . | . . . . Total Part Build Rating . | . . . . Parts Repaired . | . . . . Time . | . . . . Parts Recycled . | . . . . Recycled Matter . | . . . . Retrieved Matter . | . . . . Retrieved Components . | . . . . Parts Scanalyzed . | . . . . Part Schematics Acquired . | . . . . Parts Damaged . | . . . . Bothacking | -11 -10 -10 -10 ------------ Run | Yrd Mat Min Sub Used RIF Installer . | . . . . Robots Hacked . | . . . . Non-combat . | . . . . Combat . | . . . . Robot Hacks Applied . | . . . . Relay Couplers Released . | . . . . Fabnet Peak Effective % . | . . . . Robots Rewired . | . . . . Allies Hacked . | . . . . Hacks Repelled . | . . . . Allies | -11 -10 -10 -10 -------- Run | Yrd Mat Min Sub Total Allies 5 | . . 5 . Largest Group 5 | . . 5 5 Highest-Rated Group 89 | . . 89 89 Highest-Rated Ally 31 | . . 31 31 Total Orders . | . . . . Ally Attacks 49 | . . . 49 Total Damage 760 | . . . 760 Kills 4 | . . . 4 Allies Corrupted . | . . . . Allies Melted . | . . . . Intel | -11 -10 -10 -10 ------- Run | Yrd Mat Min Sub Robot Analysis Total . | . . . . Derelict Logs Recovered 1 | . . 1 . Drone Launches . | . . . . Drone Recoveries . | . . . . Exploration | -11 -10 -10 -10 ------------- Run | Yrd Mat Min Sub Turns Passed 1966 | 49 894 638 385 Spaces Moved 1516 | 41 768 475 232 Core 2 | 2 . . . Treads . | . . . . Legs 903 | . 196 475 232 Wheels 153 | 39 114 . . Hover 458 | . 458 . . Flight . | . . . . Fastest Speed 50 | 50 56 120 125 Average Speed 100 | 87 79 123 125 Slowest Speed 245 | 90 245 125 130 Overloaded Moves . | . . . . Propulsion Burnouts . | . . . . Robots Hopped . | . . . . Cave-ins Triggered . | . . . . Exploration Rate (%) 52 | 3 95 94 19 Regions Visited 3 Branch Regions 2 Pre-discovered Areas 2 | . . 1 1 Known Exits Taken . | . . . . Unknown Exits Taken 3 | 1 1 1 . Scrap Searched 8 | . . 1 7 Spaces Dug . | . . . . Terrain Destroyed . | . . . . Melee . | . . . . Projectile . | . . . . AOE . | . . . . Terrain Rammed . | . . . . Walls Destroyed . | . . . . Machines Disabled . | . . . . Actions | -11 -10 -10 -10 --------- Run | Yrd Mat Min Sub Total 1806 | 50 930 506 320 Wait 136 | . 39 13 84 Move 1513 | 40 767 474 232 Hop . | . . . . Pick Up 21 | 4 15 2 . Fast Attach 10 | 6 4 . . Attach 7 | . 7 . . Detach 1 | . 1 . . Swap 13 | . 10 3 . Drop 16 | . 13 3 . Fire 86 | . 71 11 4 Melee . | . . . . Ram 3 | . 3 . . Kick . | . . . . Crush . | . . . . Escape Stasis . | . . . . Rewire . | . . . . Trap . | . . . . Miscellaneous . | . . . . Route ------- -11/Scrapyard -10/Materials (discovered 4 exits: *Mat x3 / *Min) -10/Mines (discovered 3 exits: *Mat x2 / [*Sub]) -10/Subcaves (discovered 1 exit: [*Mat]) History --------- Turn | Location | Event 32 | -11/Scrapyard | Discovered new exit (range 14) 50 | -11/Scrapyard | Entered Materials 85 | -10/Materials | Discovered new exit (range 15) 282 | -10/Materials | Discovered new exit (range 5) 302 | -10/Materials | Build established: Mutant 434 | -10/Materials | Discovered new exit (range 3) 470 | -10/Materials | Identified exit to Materials 614 | -10/Materials | Core integrity fell below 50% 652 | -10/Materials | Lost 3 parts (1p2n) 699 | -10/Materials | Lost 3 parts (1n1u1w) 917 | -10/Materials | Core integrity fell below 20% 944 | -10/Materials | Entered Mines 948 | -10/Mines | Build established: Scavenger-Mutant 1000 | -10/Mines | Found a damaged Exp. Sensor Array with a note attached 1002 | -10/Mines | Found Prototype Device 1002 | -10/Mines | Identified Exp. Sensor Array 1073 | -10/Mines | Met a Derelict who couldn't figure out how to use a Trap Extractor 1215 | -10/Mines | Discovered exit to Materials (range 12) 1246 | -10/Mines | Assisted by bots powering up and referring to "LRC-V3" 1248 | -10/Mines | Learned location of Recycling (-7) 1339 | -10/Mines | Discovered exit to Materials (range 5) 1395 | -10/Mines | Build established: Mutant 1422 | -10/Mines | Discovered new exit (range 8) 1582 | -10/Mines | Entered Subcaves 1582 | -10/Subcaves | Accompanied by 5 allies 1587 | -10/Subcaves | Led the pair of lost Derelicts to an unsafe place 1633 | -10/Subcaves | Disturbed a concealed Subdweller 1703 | -10/Subcaves | Discovered new exit (range 12) 1707 | -10/Subcaves | Learned location of Zion (-6) 1707 | -10/Subcaves | Met a Zionite searching for "candidates" 1967 | -10/Subcaves | Destroyed by MN-V7V(R) with Subdweller Beam Cannon Last Messages --------------- Found 66 Matter. Searching scrap... Found Mak. Kinetic Plating. Found Spk. Treads. Found 60 Matter. Searching scrap... Found Flamer. Found Riot Gun. Found 58 Matter. LN-HXJ(R): "MADSUB!" 1I-5WS(O) puts together Sub. Monowheel. 45-F5D(R) suffers critical hit (Burn). 45-F5D(R) destroyed. JD-IBF(R) affixes Scrap Shield Fragment to Scrap Shield. JD-IBF(R) misfires. Trooper 1a destroyed. JD-IBF(R) destroyed. Aluminum Leg destroyed. Mercenary 1a destroyed. Map ----- +----------------------------------------------------+ | ?????????????????????????????????????????????????? | | ?????????????????????????????????????????????????? | | ?????????????????????????????????????????????????? | | ####?????????????????????????????????????????????? | | %#%##????????????????????????????????????????????? | | =!|[#????????????????????????????????????????????? | | "]###????????????????????????????????????????????? | | #*%#?????????????????????????????????????????????? | | # ###??####??######????####??????????????????????? | | " " #### ##?# ###?## #??????????????????????? | | #% #?# ### ##?????#???????????????? | | % ### # =* ##??? #???????????????? | | ##% # ## ##?? ##??????????????? | | %## ## #### "#? ##?????????????? | | % ### ## ## ##?# =###? #?????????????? | | #?# ####&&### #?????????????? | | %#?## ##=%% # #??????????????? | | ## ##??# #"&& "! #???????????????? | | ?# ##???#### ####= "#]##??????????????? | | ##???????#### ##?## """"#??????????????? | | ##???????????# ###??# & #??????????????? | | ##????????????# ######### * ##??????????????? | | ??????????????# #?#"""## !% ##??????????????? | | ?????????????? #?#"""R = "???????? | | ?????????????? #?#"" R" ?=%""???????? | | ????????????? #?#""#@##" ### # ""???????? | | ????????????? ?#"#####"" #??###??"????????? | | ?#???????????? ????##" #????????????????? | | ??????????????# ???????####????????????????? | | ??????????????# [#????????????????????????????? | | ??????????????#### ##????????????????????????????? | | ?????????????????##??????????????????????????????? | | ?????????????????????????????????????????????????? | | ?????????????????????????????????????????????????? | | ?????????????????????????????????????????????????? | | ?????????????????????????????????????????????????? | | ?????????????????????????????????????????????????? | | ?????????????????????????????????????????????????? | | ?????????????????????????????????????????????????? | | ?????????????????????????????????????????????????? | | ?????????????????????????????????????????????????? | | ?????????????????????????????????????????????????? | | ?????????????????????????????????????????????????? | | ?????????????????????????????????????????????????? | | ?????????????????????????????????????????????????? | | ?????????????????????????????????????????????????? | | ?????????????????????????????????????????????????? | | ?????????????????????????????????????????????????? | | ?????????????????????????????????????????????????? | | ?????????????????????????????????????????????????? | +----------------------------------------------------+ Best States ------------- Heat Dissipation 25 Energy Generation 14 Energy Capacity 250 Matter Stores 300 Matter Capacity 300 Sight Range 16 Robot Scan Range 20 Terrain Scan Density 10 Evasion (%) 55 Item Schematics ----------------- None Robot Schematics ------------------ None Fabricated ------------ Nothing Alien Tech Used ----------------- None Achievements -------------- None Challenges ------------ None Game ------ Seed HeavyGodBlade Manual? 0 Play Time 00:22:02 Cumulative 20.7 hours Start 2024.09.26 @ 01:44:14 End 2024.09.26 @ 02:04:12 Sessions 1 Manual Loads 0 Difficulty Rogue Special Mode None Game No. 22 Rogue 22 Adventurer 0 Explorer 0 Win Type - Total 0 Types 0/0/0/0/0/0/0/0/0 Lore% 7 Gallery% 20 Achievement% 18 Wizard Run 0 Options --------- Layout 2 ASCII 0 Keyboard 0 Movement Numpad Keybinds 0 Fullscreen 2 Font 48/Smallcaps Map View 50x44 Zoom Use 0% Tactical HUD 0 Map Filters NONE Filters NONE Steam 1 RUN: 3395de91-d7ff-4bbf-8de4-737fa64781b9